fUSD/lending_fUSD_20240426
["ID","MTS","AMOUNT","RATE_DAILY","PERIOD"]
[323600828,1714103450760,-597.62064951,0.0001178,2]
[323600829,1714103450769,-607.78594913,0.0001178,2]
[323600830,1714103450778,-500.0,0.0001178,2]
[323600831,1714103450787,-887.11,0.0001178,2]
[323600832,1714103450796,-2304.09,0.0001178,2]
[323600833,1714103450806,-631.02,0.0001178,2]
[323600834,1714103450815,-500.0,0.0001178,2]
[323600835,1714103450824,-500.0,0.0001178,2]
[323600836,1714103450833,-515.85,0.0001178,2]
[323600837,1714103450843,-4492.01,0.0001178,2]
[323600838,1714103450852,-420.30295447,0.0001178,2]
[323600839,1714103450861,-500.0,0.0001178,2]
[323600840,1714103450870,-500.0,0.0001178,2]
[323600841,1714103450879,-500.0,0.0001178,2]
[323600842,1714103450888,-500.0,0.0001178,2]
[323600843,1714103450898,-516.64,0.0001178,2]
[323600844,1714103450906,-209.99032291,0.0001178,2]
[323600845,1714103450916,-624.41730503,0.0001178,2]
[323600846,1714103450925,-1086.73,0.0001178,2]
[323600847,1714103450934,-3246.25,0.0001178,2]
[323600848,1714103450943,-500.0,0.0001178,2]
[323600849,1714103450952,-500.0,0.0001178,2]
[323600850,1714103450961,-434.83886504,0.0001178,2]
[323600851,1714103450970,-500.0,0.0001178,2]
[323600852,1714103450980,-1794.87,0.0001178,2]
[323600853,1714103450989,-500.0,0.0001178,2]
[323600854,1714103450998,-563.47558704,0.0001178,2]
[323600855,1714103451008,-500.0,0.0001178,2]
[323600856,1714103451017,-500.0,0.0001178,2]
[323600857,1714103451026,-3520.56,0.0001178,2]
[323600858,1714103451035,-500.0,0.0001178,2]
[323600859,1714103451044,-500.0,0.0001178,2]
[323600860,1714103451053,-500.0,0.0001178,2]
[323600861,1714103451063,-500.0,0.0001178,2]
[323600862,1714103451072,-643.86,0.0001178,2]
[323600863,1714103451081,-338.33601475,0.0001178,2]
[323600864,1714103451090,-500.0,0.0001178,2]
[323600865,1714103451099,-500.0,0.0001178,2]
[323600866,1714103451109,-500.0,0.0001178,2]
[323600867,1714103451117,-500.0,0.0001178,2]
[323600868,1714103451127,-817.52,0.0001178,2]
[323600869,1714103451135,-843.31,0.0001178,2]
[323600870,1714103451145,-656.38,0.0001178,2]
[323600871,1714103451154,-500.0,0.0001178,2]
[323600872,1714103451163,-500.0,0.0001178,2]
[323600873,1714103451172,-500.0,0.0001178,2]
[323600874,1714103451182,-611.99,0.0001178,2]
[323600875,1714103451190,-722.66,0.0001178,2]
[323600876,1714103451199,-500.0,0.0001178,2]
[323600877,1714103451209,-500.0,0.0001178,2]
[323600878,1714103451218,-946.51,0.0001178,2]
[323600879,1714103451227,-831.05,0.0001178,2]
[323600880,1714103451236,-500.0,0.0001178,2]
[323600881,1714103451245,-500.0,0.0001178,2]
[323600882,1714103451255,-865.08,0.0001178,2]
[323600883,1714103451265,-500.0,0.0001178,2]
[323600884,1714103451274,-532.5,0.0001178,2]
[323600885,1714103451283,-500.0,0.0001178,2]
[323600886,1714103451292,-500.0,0.0001178,2]
[323600887,1714103451301,-1198.27,0.0001178,2]
[323600888,1714103451310,-590.87,0.0001178,2]
[323600889,1714103451319,-500.0,0.0001178,2]
[323600890,1714103451328,-500.0,0.0001178,2]
[323600891,1714103451338,-500.0,0.0001178,2]
[323600892,1714103451347,-600.37,0.0001178,2]
[323600893,1714103451355,-578.51,0.0001178,2]
[323600894,1714103451364,-858.18,0.0001178,2]
[323600895,1714103451373,-366.61078528,0.0001178,2]
[323600896,1714103451382,-500.0,0.0001178,2]
[323600897,1714103451391,-500.0,0.0001178,2]
[323600898,1714103451400,-500.0,0.0001178,2]
[323600899,1714103451409,-2367.66,0.0001178,2]
[323600900,1714103451419,-1909.18,0.0001178,2]
[323600901,1714103451429,-702.35,0.0001178,2]
[323600902,1714103451438,-500.0,0.0001178,2]
[323600903,1714103451447,-1749.61,0.0001178,2]
[323600904,1714103451457,-2356.63,0.0001178,2]
[323600905,1714103451466,-1775.59,0.0001178,2]
[323600906,1714103451475,-2180.5,0.0001178,2]
[323600907,1714103451485,-746.91,0.0001178,2]
[323600908,1714103451494,-574.13,0.0001178,2]
[323600909,1714103451503,-500.0,0.0001178,2]
[323600910,1714103451512,-500.0,0.0001178,2]
[323600911,1714103451522,-884.15,0.0001178,2]
[323600912,1714103451531,-1778.61,0.0001178,2]
[323600913,1714103451542,-500.0,0.0001178,2]
[323600914,1714103451553,-500.0,0.0001178,2]
[323600915,1714103451562,-733.15,0.0001178,2]
[323600916,1714103451571,-500.0,0.0001178,2]
[323600917,1714103451581,-540.51,0.0001178,2]
[323600918,1714103451591,-535.47,0.0001178,2]
[323600919,1714103451600,-500.0,0.0001178,2]
[323600920,1714103451609,-926.6,0.0001178,2]
[323600921,1714103451619,-500.0,0.0001178,2]
[323600922,1714103451629,-500.0,0.0001178,2]
[323600923,1714103451638,-500.0,0.0001178,2]
[323600924,1714103451647,-7074.26,0.0001178,2]
[323600925,1714103451656,-882.54,0.0001178,2]
[323600926,1714103451665,-500.0,0.0001178,2]
[323600927,1714103451674,-500.0,0.0001178,2]
[323600928,1714103451683,-500.0,0.0001178,2]
[323600929,1714103451693,-500.0,0.0001178,2]
[323600930,1714103451702,-500.0,0.0001178,2]
[323600931,1714103451711,-500.0,0.0001178,2]
[323600932,1714103451720,-1770.68,0.0001178,2]
[323600933,1714103451729,-500.0,0.0001178,2]
[323600934,1714103451738,-500.0,0.0001178,2]
[323600935,1714103451748,-829.66,0.0001178,2]
[323600936,1714103451757,-2122.78,0.0001178,2]
[323600937,1714103451767,-554.29,0.0001178,2]
[323600938,1714103451776,-738.29,0.0001178,2]
[323600939,1714103451785,-500.0,0.0001178,2]
[323600940,1714103451794,-500.0,0.0001178,2]
[323600941,1714103451803,-908.82,0.0001178,2]
[323600942,1714103451813,-500.0,0.0001178,2]
[323600943,1714103451822,-500.0,0.0001178,2]
[323600944,1714103451831,-500.0,0.0001178,2]
[323600945,1714103451841,-8856.42,0.0001178,2]
[323600946,1714103451850,-500.0,0.0001178,2]
[323600947,1714103451859,-500.0,0.0001178,2]
[323600948,1714103451868,-604.35,0.0001178,2]
[323600949,1714103451877,-500.0,0.0001178,2]
[323600950,1714103451887,-500.0,0.0001178,2]
[323600951,1714103451896,-500.0,0.0001178,2]
[323600952,1714103451905,-500.0,0.0001178,2]
[323600953,1714103451914,-520.91,0.0001178,2]
[323600954,1714103451924,-537.58,0.0001178,2]
[323600955,1714103451933,-500.0,0.0001178,2]
[323600956,1714103451942,-500.0,0.0001178,2]
[323600957,1714103451951,-589.91,0.0001178,2]
[323600958,1714103451960,-500.0,0.0001178,2]
[323600959,1714103451969,-1500.0,0.00011781,2]
[323600960,1714103451978,-1117.76037187,0.00011813,2]
[323600961,1714103451987,-150.0,0.00011813,2]
[323600962,1714103451996,-162.1336714,0.00011894,2]
[323600963,1714103452008,-843.9,0.00011936,2]
[323600964,1714103452017,-970.0,0.00011946,2]
[323600965,1714103452027,-2297.0,0.00011946,2]
[323600966,1714103452036,-462.0,0.00011946,2]
[323600967,1714103452045,-1394.0,0.00011946,2]
[323600968,1714103452054,-542.0,0.00011946,2]
[323600969,1714103452063,-1228.0,0.00011946,2]
[323600970,1714103452072,-1257.0,0.00011946,2]
[323600971,1714103452082,-610.0,0.00011946,2]
[323600972,1714103452091,-1859.0,0.00011946,2]
[323600973,1714103452100,-437.0,0.00011946,2]
[323600974,1714103452110,-437.88,0.00011946,2]
[323600975,1714103452119,-258.0,0.00011946,2]
[323600976,1714103452128,-420.0,0.00011946,2]
[323600977,1714103452138,-150.0,0.00011946,2]
[323600978,1714103452146,-1475.0,0.00011946,2]
[323600979,1714103452155,-2446.0,0.00011946,2]
[323600980,1714103452164,-3121.0,0.00011946,2]
[323600981,1714103452173,-214.0,0.00011946,2]
[323600982,1714103452182,-443.0,0.00011946,2]
[323600983,1714103452191,-1226.31518377,0.00011946,2]
[323600984,1714103452820,-500.0,0.00010958,2]
[323600985,1714103452829,-335.29658426,0.00010958,2]
[323600986,1714103453381,-164.70341574,0.00010958,2]
[323600987,1714103453391,-129.75389693,0.00010958,2]
[323600988,1714103453614,-370.24610307,0.00010958,2]
[323600989,1714103453625,-500.0,0.00010958,2]
[323600990,1714103453636,-500.0,0.00011232,2]
[323600991,1714103453647,-500.0,0.00011232,2]
[323600992,1714103453656,-500.0,0.00011506,2]
[323600993,1714103453666,-500.0,0.0001178,2]
[323600994,1714103453675,-414.68481623,0.00011946,2]
[323600995,1714103453684,-174.51285164,0.00011946,2]
[323600996,1714103454088,-500.0,0.00010958,2]
[323600997,1714103454097,-500.0,0.00010958,2]
[323600998,1714103454107,-590.31,0.00010958,2]
[323600999,1714103454116,-500.0,0.00010958,2]
[323601000,1714103454125,-230.41,0.00011232,2]
[323601001,1714103454136,-970.56714836,0.00011946,2]
[323601002,1714103454145,-5748.227,0.00011946,2]
[323601003,1714103454154,-19017.75623387,0.00011946,2]
[323601004,1714103454176,-2555.3819035,0.00011946,2]
[323601005,1714103454188,-3271.30003414,0.00011946,2]
[323601006,1714103806757,-411.58,8.733e-05,2]
[323601008,1714104446145,150.0,8.356e-05,2]
[323601009,1714104446168,150.0,8.356e-05,2]
[323601010,1714104446190,108.87,8.356e-05,2]
[323601017,1714104631555,-1870.45077345,0.00010201,2]
[323601018,1714104631566,-370.12698549,0.00010202,2]
[323601019,1714104631575,-636.99,0.00010218,2]
[323601020,1714104631585,-399.86,0.00010237,2]
[323601021,1714104631594,-859.6,0.00010522,2]
[323601022,1714104631603,-163.09,0.00010595,2]
[323601023,1714104631613,-408.87,0.0001062,2]
[323601024,1714104631623,-150.0,0.00010657,2]
[323601025,1714104631633,-1029.26,0.00010658,2]
[323601026,1714104631642,-468.15518216,0.00010658,2]
[323601027,1714104631770,-31.83481784,0.00010658,2]
[323601028,1714104631779,-702.80039541,0.00010658,2]
[323601029,1714104631790,-840.52331929,0.00010658,2]
[323601030,1714104631819,-51.6314853,0.00010658,2]
[323601031,1714104631828,-764.61304968,0.00010758,2]
[323601032,1714104631874,-12098.75000252,0.00010758,2]
[323601072,1714104637623,-468.75,0.00010758,2]
[323601073,1714104637678,-796.44791203,0.00010758,2]
[323601074,1714104637734,-85871.43903577,0.00010758,2]
[323601075,1714104637743,-500.0,0.00010758,2]
[323601076,1714104637752,-165.76896418,0.00010858,2]
[323601077,1714104637761,-245000.0,0.00010858,2]
[323601078,1714104637770,-405.42054663,0.00010957,2]
[323601079,1714104637780,-500.0,0.00010958,2]
[323601080,1714104637790,-532.78441359,0.00010958,2]
[323601081,1714104637799,-500.0,0.00010958,2]
[323601082,1714104637808,-500.0,0.00010958,2]
[323601083,1714104637817,-500.0,0.00010958,2]
[323601084,1714104637827,-494.0,0.00010958,2]
[323601085,1714104637836,-500.0,0.00010958,2]
[323601086,1714104637846,-500.0,0.00010958,2]
[323601087,1714104637855,-500.0,0.00010958,2]
[323601088,1714104637865,-500.0,0.00010958,2]
[323601089,1714104637875,-500.0,0.00010958,2]
[323601090,1714104637884,-500.0,0.00010958,2]
[323601091,1714104637894,-500.0,0.00010958,2]
[323601092,1714104637903,-503.87775101,0.00010958,2]
[323601093,1714104637913,-500.0,0.00010958,2]
[323601094,1714104637922,-215.58876111,0.00010958,2]
[323601095,1714104637934,-500.0,0.00010958,2]
[323601096,1714104637943,-500.0,0.00010958,2]
[323601097,1714104637952,-500.0,0.00010958,2]
[323601098,1714104637962,-308.14819394,0.00010958,2]
[323601099,1714104637973,-500.0,0.00010958,2]
[323601100,1714104637982,-500.0,0.00010958,2]
[323601101,1714104637991,-500.0,0.00010958,2]
[323601102,1714104638000,-500.0,0.00010958,2]
[323601103,1714104638010,-500.0,0.00010958,2]
[323601104,1714104638020,-500.0,0.00010958,2]
[323601105,1714104638029,-500.0,0.00010958,2]
[323601106,1714104638039,-500.0,0.00010958,2]
[323601107,1714104638048,-500.0,0.00010958,2]
[323601108,1714104638058,-608.81282647,0.00010958,2]
[323601109,1714104638067,-500.0,0.00010958,2]
[323601110,1714104638077,-500.0,0.00010958,2]
[323601111,1714104638086,-500.0,0.00010958,2]
[323601112,1714104638097,-500.0,0.00010958,2]
[323601113,1714104638107,-500.0,0.00010958,2]
[323601114,1714104638117,-500.0,0.00010958,2]
[323601115,1714104638129,-583.17722163,0.00010958,2]
[323601116,1714104638140,-500.0,0.00010958,2]
[323601117,1714104638152,-500.0,0.00010958,2]
[323601118,1714104638162,-500.0,0.00010958,2]
[323601119,1714104638171,-500.0,0.00010958,2]
[323601120,1714104638182,-500.0,0.00010958,2]
[323601121,1714104638192,-484.99650723,0.00010958,2]
[323601122,1714104638202,-500.0,0.00010958,2]
[323601123,1714104638456,-500.0,0.00010958,2]
[323601124,1714104638467,-500.0,0.00010958,2]
[323601125,1714104638480,-500.0,0.00010958,2]
[323601126,1714104638489,-500.0,0.00010958,2]
[323601127,1714104638499,-500.0,0.00010958,2]
[323601128,1714104638509,-500.0,0.00010958,2]
[323601129,1714104638519,-562.05,0.00010958,2]
[323601130,1714104638528,-500.0,0.00010958,2]
[323601131,1714104638537,-500.0,0.00010958,2]
[323601132,1714104638547,-500.0,0.00010958,2]
[323601133,1714104638557,-500.0,0.00010958,2]
[323601134,1714104638567,-500.0,0.00010958,2]
[323601135,1714104638576,-511.09280892,0.00010958,2]
[323601136,1714104638586,-500.0,0.00010958,2]
[323601137,1714104638595,-500.0,0.00010958,2]
[323601138,1714104638605,-500.0,0.00010958,2]
[323601139,1714104638616,-500.0,0.00010958,2]
[323601140,1714104638626,-500.0,0.00010958,2]
[323601141,1714104638636,-544.68187657,0.00010958,2]
[323601142,1714104638647,-500.0,0.00010958,2]
[323601143,1714104638658,-939.18,0.00010958,2]
[323601144,1714104638667,-500.0,0.00010958,2]
[323601145,1714104638677,-500.0,0.00010958,2]
[323601146,1714104638687,-509.7710795,0.00010958,2]
[323601147,1714104638695,-500.0,0.00010958,2]
[323601148,1714104638704,-503.36041816,0.00010958,2]
[323601149,1714104638714,-501.88611455,0.00010958,2]
[323601150,1714104638726,-500.0,0.00010958,2]
[323601151,1714104638735,-500.0,0.00010958,2]
[323601152,1714104638745,-500.0,0.00010958,2]
[323601153,1714104638754,-500.0,0.00010958,2]
[323601154,1714104638763,-333.69041507,0.00010958,2]
[323601155,1714104638772,-500.0,0.00010958,2]
[323601156,1714104638782,-500.0,0.00010958,2]
[323601157,1714104638791,-500.0,0.00010958,2]
[323601158,1714104638801,-500.0,0.00010958,2]
[323601159,1714104638810,-500.0,0.00010958,2]
[323601160,1714104638819,-500.0,0.00010958,2]
[323601161,1714104638829,-500.0,0.00010958,2]
[323601162,1714104638839,-500.0,0.00010958,2]
[323601163,1714104638848,-499.40638346,0.00010958,2]
[323601164,1714104638857,-500.0,0.00010958,2]
[323601165,1714104638867,-500.0,0.00010958,2]
[323601166,1714104638876,-500.0,0.00010958,2]
[323601167,1714104638886,-500.0,0.00010958,2]
[323601168,1714104638895,-500.0,0.00010958,2]
[323601169,1714104638905,-500.0,0.00010958,2]
[323601170,1714104638915,-500.0,0.00010958,2]
[323601171,1714104638925,-500.0,0.00010958,2]
[323601172,1714104638937,-500.0,0.00010958,2]
[323601173,1714104638947,-500.0,0.00010958,2]
[323601174,1714104638956,-500.0,0.00010958,2]
[323601175,1714104638965,-500.0,0.00010958,2]
[323601176,1714104638978,-500.0,0.00010958,2]
[323601177,1714104638987,-500.0,0.00010958,2]
[323601178,1714104638997,-500.0,0.00010958,2]
[323601179,1714104639007,-500.0,0.00010958,2]
[323601180,1714104639017,-500.0,0.00010958,2]
[323601181,1714104639026,-500.0,0.00010958,2]
[323601182,1714104639036,-500.0,0.00010958,2]
[323601183,1714104639045,-500.0,0.00010958,2]
[323601184,1714104639054,-500.0,0.00010958,2]
[323601185,1714104639063,-500.0,0.00010958,2]
[323601186,1714104639073,-500.0,0.00010958,2]
[323601187,1714104639082,-500.0,0.00010958,2]
[323601188,1714104639091,-500.0,0.00010958,2]
[323601189,1714104639101,-506.30191452,0.00010958,2]
[323601190,1714104639111,-500.0,0.00010958,2]
[323601191,1714104639120,-500.0,0.00010958,2]
[323601192,1714104639129,-500.0,0.00010958,2]
[323601193,1714104639139,-500.0,0.00010958,2]
[323601194,1714104639148,-500.0,0.00010958,2]
[323601195,1714104639157,-500.0,0.00010958,2]
[323601196,1714104639167,-500.0,0.00010958,2]
[323601197,1714104639176,-500.0,0.00010958,2]
[323601198,1714104639185,-500.0,0.00010958,2]
[323601199,1714104639195,-500.0,0.00010958,2]
[323601200,1714104639204,-500.0,0.00010958,2]
[323601201,1714104639214,-500.0,0.00010958,2]
[323601202,1714104639225,-500.0,0.00010958,2]
[323601203,1714104639234,-500.0,0.00010958,2]
[323601204,1714104639243,-500.0,0.00010958,2]
[323601205,1714104639252,-500.0,0.00010958,2]
[323601206,1714104639261,-500.0,0.00010958,2]
[323601207,1714104639270,-500.0,0.00010958,2]
[323601208,1714104639279,-500.0,0.00010958,2]
[323601209,1714104639288,-500.0,0.00010958,2]
[323601210,1714104639298,-500.0,0.00010958,2]
[323601212,1714104639307,-500.0,0.00010958,2]
[323601213,1714104639317,-500.0,0.00010958,2]
[323601214,1714104639327,-500.0,0.00010958,2]
[323601215,1714104639336,-500.0,0.00010958,2]
[323601216,1714104639346,-500.0,0.00010958,2]
[323601217,1714104639355,-500.0,0.00010958,2]
[323601218,1714104639365,-500.0,0.00010958,2]
[323601219,1714104639374,-500.0,0.00010958,2]
[323601220,1714104639385,-500.0,0.00010958,2]
[323601221,1714104639394,-500.0,0.00010958,2]
[323601222,1714104639403,-500.0,0.00010958,2]
[323601223,1714104639413,-504.69305795,0.00010958,2]
[323601224,1714104639422,-500.0,0.00010958,2]
[323601225,1714104639433,-502.12845793,0.00010958,2]
[323601226,1714104639442,-500.0,0.00010958,2]
[323601227,1714104639452,-500.0,0.00010958,2]
[323601228,1714104639461,-500.0,0.00010958,2]
[323601229,1714104639473,-487.31,0.00010958,2]
[323601230,1714104639483,-500.0,0.00010958,2]
[323601231,1714104639492,-500.0,0.00010958,2]
[323601232,1714104639501,-500.0,0.00010958,2]
[323601233,1714104639511,-500.0,0.00010958,2]
[323601234,1714104639520,-500.0,0.00010958,2]
[323601235,1714104639529,-500.0,0.00010958,2]
[323601236,1714104639539,-500.0,0.00010958,2]
[323601237,1714104639549,-500.0,0.00010958,2]
[323601238,1714104639558,-500.0,0.00010958,2]
[323601239,1714104639567,-500.0,0.00010958,2]
[323601240,1714104639576,-500.0,0.00010958,2]
[323601241,1714104639585,-535.07,0.00010958,2]
[323601242,1714104639594,-500.0,0.00010958,2]
[323601243,1714104639603,-500.0,0.00010958,2]
[323601244,1714104639613,-500.0,0.00010958,2]
[323601245,1714104639622,-500.0,0.00010958,2]
[323601246,1714104639631,-560.88,0.00010958,2]
[323601247,1714104639640,-500.0,0.00010958,2]
[323601248,1714104639649,-500.0,0.00010958,2]
[323601249,1714104639658,-500.0,0.00010958,2]
[323601250,1714104639667,-500.0,0.00010958,2]
[323601251,1714104639676,-513.88290293,0.00010958,2]
[323601252,1714104639685,-500.0,0.00010958,2]
[323601253,1714104639694,-500.0,0.00010958,2]
[323601254,1714104639703,-607.61,0.00010958,2]
[323601255,1714104639712,-500.0,0.00010958,2]
[323601256,1714104639725,-500.0,0.00010958,2]
[323601257,1714104639734,-500.0,0.00010958,2]
[323601258,1714104639744,-500.0,0.00010958,2]
[323601259,1714104639753,-500.0,0.00010958,2]
[323601260,1714104639762,-500.0,0.00010958,2]
[323601261,1714104639772,-504.55665628,0.00010958,2]
[323601262,1714104639781,-500.0,0.00010958,2]
[323601263,1714104639790,-500.0,0.00010958,2]
[323601264,1714104639799,-500.0,0.00010958,2]
[323601265,1714104639808,-507.11669426,0.00010958,2]
[323601266,1714104639817,-500.0,0.00010958,2]
[323601267,1714104639827,-500.0,0.00010958,2]
[323601268,1714104639836,-500.0,0.00010958,2]
[323601269,1714104639845,-500.0,0.00010958,2]
[323601270,1714104639855,-502.93281707,0.00010958,2]
[323601271,1714104639864,-500.0,0.00010958,2]
[323601272,1714104639874,-500.0,0.00010958,2]
[323601273,1714104639884,-503.14817749,0.00010958,2]
[323601274,1714104639893,-500.0,0.00010958,2]
[323601275,1714104639903,-500.0,0.00010958,2]
[323601276,1714104639912,-500.0,0.00010958,2]
[323601277,1714104639923,-505.90074626,0.00010958,2]
[323601278,1714104639935,-500.0,0.00010958,2]
[323601279,1714104639945,-500.0,0.00010958,2]
[323601280,1714104639956,-441.32352303,0.00010958,2]
[323601281,1714104639965,-500.0,0.00010958,2]
[323601282,1714104639979,-500.0,0.00010958,2]
[323601283,1714104639988,-500.0,0.00010958,2]
[323601284,1714104639997,-500.0,0.00010958,2]
[323601285,1714104640007,-500.0,0.00010958,2]
[323601286,1714104640016,-500.0,0.00010958,2]
[323601287,1714104640025,-500.0,0.00010958,2]
[323601288,1714104640035,-500.0,0.00010958,2]
[323601289,1714104640044,-500.0,0.00010958,2]
[323601290,1714104640054,-500.0,0.00010958,2]
[323601291,1714104640064,-500.0,0.00010958,2]
[323601292,1714104640074,-500.0,0.00010958,2]
[323601293,1714104640083,-500.0,0.00010958,2]
[323601294,1714104640093,-500.0,0.00010958,2]
[323601295,1714104640103,-500.0,0.00010958,2]
[323601296,1714104640112,-500.0,0.00010958,2]
[323601297,1714104640122,-500.0,0.00010958,2]
[323601298,1714104640132,-500.0,0.00010958,2]
[323601299,1714104640141,-500.0,0.00010958,2]
[323601300,1714104640151,-500.0,0.00010958,2]
[323601301,1714104640160,-150.0,0.00010958,2]
[323601302,1714104640169,-500.0,0.00010958,2]
[323601303,1714104640178,-500.0,0.00010958,2]
[323601304,1714104640187,-500.0,0.00010958,2]
[323601305,1714104640197,-500.0,0.00010958,2]
[323601306,1714104640207,-500.0,0.00010958,2]
[323601307,1714104640216,-500.0,0.00010958,2]
[323601308,1714104640228,-338.00790797,0.00010958,2]
[323601309,1714104640237,-500.0,0.00010958,2]
[323601310,1714104640246,-500.0,0.00010958,2]
[323601311,1714104640256,-523.14603434,0.00010958,2]
[323601312,1714104640265,-500.0,0.00010958,2]
[323601313,1714104640275,-500.0,0.00010958,2]
[323601314,1714104640284,-330.84602722,0.00010958,2]
[323601315,1714104640293,-500.0,0.00010958,2]
[323601316,1714104640303,-500.0,0.00010958,2]
[323601317,1714104640313,-500.0,0.00010958,2]
[323601318,1714104640322,-500.0,0.00010958,2]
[323601319,1714104640331,-196.69,0.00010958,2]
[323601320,1714104640341,-500.0,0.00010958,2]
[323601321,1714104640350,-500.0,0.00010958,2]
[323601322,1714104640359,-500.0,0.00010958,2]
[323601323,1714104640368,-500.0,0.00010958,2]
[323601324,1714104640378,-500.0,0.00010958,2]
[323601325,1714104640387,-500.0,0.00010958,2]
[323601326,1714104640396,-500.0,0.00010958,2]
[323601327,1714104640405,-500.0,0.00010958,2]
[323601328,1714104640414,-500.0,0.00010958,2]
[323601329,1714104640424,-500.0,0.00010958,2]
[323601330,1714104640433,-503.10077948,0.00010958,2]
[323601331,1714104640442,-500.0,0.00010958,2]
[323601332,1714104640451,-331.27607536,0.00010958,2]
[323601333,1714104640460,-500.0,0.00010958,2]
[323601334,1714104640469,-502.06113389,0.00010958,2]
[323601335,1714104640479,-625.06299057,0.00010958,2]
[323601336,1714104640490,-500.0,0.00010958,2]
[323601337,1714104640499,-500.0,0.00010958,2]
[323601338,1714104640508,-500.0,0.00010958,2]
[323601339,1714104640517,-500.0,0.00010958,2]
[323601340,1714104640526,-500.0,0.00010958,2]
[323601341,1714104640535,-500.0,0.00010958,2]
[323601342,1714104640546,-500.0,0.00010958,2]
[323601343,1714104640556,-500.0,0.00010958,2]
[323601344,1714104640565,-500.0,0.00010958,2]
[323601345,1714104640575,-500.0,0.00010958,2]
[323601346,1714104640586,-500.0,0.00010958,2]
[323601347,1714104640596,-501.64240866,0.00010958,2]
[323601348,1714104640605,-500.0,0.00010958,2]
[323601349,1714104640614,-500.0,0.00010958,2]
[323601350,1714104640625,-500.0,0.00010958,2]
[323601351,1714104640634,-500.0,0.00010958,2]
[323601352,1714104640643,-500.0,0.00010958,2]
[323601353,1714104640653,-500.0,0.00010958,2]
[323601354,1714104640662,-500.0,0.00010958,2]
[323601355,1714104640671,-500.0,0.00010958,2]
[323601356,1714104640680,-500.0,0.00010958,2]
[323601357,1714104640690,-500.0,0.00010958,2]
[323601358,1714104640699,-500.0,0.00010958,2]
[323601359,1714104640708,-500.0,0.00010958,2]
[323601360,1714104640718,-500.0,0.00010958,2]
[323601361,1714104640729,-500.0,0.00010958,2]
[323601362,1714104640738,-521.36,0.00010958,2]
[323601363,1714104640748,-500.0,0.00010958,2]
[323601364,1714104640757,-500.0,0.00010958,2]
[323601365,1714104640766,-500.0,0.00010958,2]
[323601366,1714104640775,-500.0,0.00010958,2]
[323601367,1714104640785,-500.0,0.00010958,2]
[323601368,1714104640794,-500.0,0.00010958,2]
[323601369,1714104640803,-500.0,0.00010958,2]
[323601370,1714104640813,-500.0,0.00010958,2]
[323601371,1714104640823,-500.0,0.00010958,2]
[323601372,1714104640832,-500.0,0.00010958,2]
[323601373,1714104640842,-500.0,0.00010958,2]
[323601374,1714104640851,-500.0,0.00010958,2]